[Event "Late-Titled-Tuesday-Blitz-December-26-2023"]
[Site "Chess.com"]
[Date "2023.12.26"]
[Round "6"]
[White "venturov"]
[Black "HajiyevKanan"]
[Result "0-1"]
[WhiteElo "2490"]
[BlackElo "2638"]
[TimeControl "180+1"]
[EndTime "15:08:32 PST"]
[Termination "HajiyevKanan won by checkmate"]

1. e4 {[%clk 0:03:00.9]} 1... c6 {[%clk 0:02:59.5]} 2. d4 {[%clk 0:02:51.6]}
2... d5 {[%clk 0:03:00.4]} 3. Nc3 {[%clk 0:02:51.2]} 3... a6 {[%clk 0:03:01]} 4.
Nf3 {[%clk 0:02:49]} 4... Bg4 {[%clk 0:03:01.1]} 5. Be2 {[%clk 0:02:42.2]} 5...
e6 {[%clk 0:03:00.7]} 6. Be3 {[%clk 0:02:42.1]} 6... Nf6 {[%clk 0:03:01]} 7. e5
{[%clk 0:02:40]} 7... Nfd7 {[%clk 0:03:01.6]} 8. h3 {[%clk 0:02:32.2]} 8... Bh5
{[%clk 0:03:01.1]} 9. g4 {[%clk 0:02:29.8]} 9... Bg6 {[%clk 0:03:01]} 10. h4
{[%clk 0:02:30.1]} 10... h5 {[%clk 0:03:00.7]} 11. Ng5 {[%clk 0:02:22.1]} 11...
hxg4 {[%clk 0:02:55.9]} 12. Bxg4 {[%clk 0:02:21.3]} 12... c5 {[%clk 0:02:55.4]}
13. h5 {[%clk 0:02:15.4]} 13... cxd4 {[%clk 0:02:53.1]} 14. Bxd4 {[%clk
0:02:03.1]} 14... Qxg5 {[%clk 0:02:52.5]} 15. Qf3 {[%clk 0:01:39.1]} 15... Bh7
{[%clk 0:02:27.3]} 16. Be3 {[%clk 0:01:24]} 16... Qd8 {[%clk 0:01:59.7]} 17.
O-O-O {[%clk 0:01:22.7]} 17... Nc6 {[%clk 0:01:59.4]} 18. Nxd5 {[%clk
0:01:09.3]} 18... Ndxe5 {[%clk 0:01:56.1]} 19. Qg2 {[%clk 0:00:48.6]} 19... Nxg4
{[%clk 0:01:48.8]} 20. Qxg4 {[%clk 0:00:46.4]} 20... exd5 {[%clk 0:01:47.5]} 21.
Rhe1 {[%clk 0:00:44.3]} 21... Be7 {[%clk 0:01:38.1]} 22. Qxg7 {[%clk 0:00:42.2]}
22... Rf8 {[%clk 0:00:39.6]} 23. Qxh7 {[%clk 0:00:37.7]} 23... Qd6 {[%clk
0:00:38.3]} 24. Bh6 {[%clk 0:00:23.5]} 24... O-O-O {[%clk 0:00:33.4]} 25. Bxf8
{[%clk 0:00:23.8]} 25... Rxf8 {[%clk 0:00:33.7]} 26. Qf5+ {[%clk 0:00:20.3]}
26... Qd7 {[%clk 0:00:29.4]} 27. Rxd5 {[%clk 0:00:18.7]} 27... Qxf5 {[%clk
0:00:29.2]} 28. Rxf5 {[%clk 0:00:19.6]} 28... Kd7 {[%clk 0:00:25]} 29. h6 {[%clk
0:00:18.6]} 29... f6 {[%clk 0:00:21.7]} 30. Rg1 {[%clk 0:00:14.8]} 30... Rh8
{[%clk 0:00:21.4]} 31. Rh5 {[%clk 0:00:14.7]} 31... Ke6 {[%clk 0:00:20.4]} 32.
Rg7 {[%clk 0:00:13.4]} 32... Ne5 {[%clk 0:00:21]} 33. h7 {[%clk 0:00:12.9]}
33... Nf7 {[%clk 0:00:14.7]} 34. f4 {[%clk 0:00:11.9]} 34... f5 {[%clk
0:00:12.7]} 35. Rh1 {[%clk 0:00:07.3]} 35... Bf6 {[%clk 0:00:12.6]} 36. Re1+
{[%clk 0:00:07]} 36... Ne5 {[%clk 0:00:09.7]} 37. Rg6 {[%clk 0:00:03.4]} 37...
Kf7 {[%clk 0:00:08.9]} 38. Rxf6+ {[%clk 0:00:02.6]} 38... Kxf6 {[%clk
0:00:09.8]} 39. fxe5+ {[%clk 0:00:02.8]} 39... Ke6 {[%clk 0:00:10.5]} 40. Rh1
{[%clk 0:00:03.2]} 40... Kxe5 {[%clk 0:00:11.2]} 41. Kd2 {[%clk 0:00:04.1]}
41... Kf4 {[%clk 0:00:10.6]} 42. Ke2 {[%clk 0:00:04.7]} 42... Kg3 {[%clk
0:00:11.3]} 43. Kf1 {[%clk 0:00:03.3]} 43... f4 {[%clk 0:00:10.4]} 44. Rh6
{[%clk 0:00:04]} 44... f3 {[%clk 0:00:10]} 45. c4 {[%clk 0:00:04.1]} 45... Rd8
{[%clk 0:00:10]} 46. Ke1 {[%clk 0:00:02.8]} 46... Re8+ {[%clk 0:00:09.7]} 47.
Kd2 {[%clk 0:00:03]} 47... f2 {[%clk 0:00:09.7]} 48. h8=Q {[%clk 0:00:03.2]}
48... Rxh8 {[%clk 0:00:09.6]} 49. Rxh8 {[%clk 0:00:04.1]} 49... f1=Q {[%clk
0:00:10.2]} 50. Rg8+ {[%clk 0:00:04.7]} 50... Kh4 {[%clk 0:00:10.8]} 51. Re8
{[%clk 0:00:05.2]} 51... Qxc4 {[%clk 0:00:10.2]} 52. Re3 {[%clk 0:00:05.6]}
52... Qxa2 {[%clk 0:00:09.5]} 53. Kc2 {[%clk 0:00:05]} 53... Qc4+ {[%clk
0:00:08.3]} 54. Rc3 {[%clk 0:00:05.9]} 54... Qa4+ {[%clk 0:00:08.5]} 55. Kb1
{[%clk 0:00:05.8]} 55... b5 {[%clk 0:00:07.8]} 56. b3 {[%clk 0:00:06.2]} 56...
Qa3 {[%clk 0:00:07.2]} 57. Kc2 {[%clk 0:00:05.8]} 57... Kg5 {[%clk 0:00:07.5]}
58. Rc6 {[%clk 0:00:05.7]} 58... Kf5 {[%clk 0:00:06.7]} 59. Kc3 {[%clk
0:00:04.9]} 59... Ke5 {[%clk 0:00:06.8]} 60. Kc2 {[%clk 0:00:05.1]} 60... Kd5
{[%clk 0:00:07]} 61. Rc3 {[%clk 0:00:05.4]} 61... Qa2+ {[%clk 0:00:07.3]} 62.
Kc1 {[%clk 0:00:05.2]} 62... b4 {[%clk 0:00:07.8]} 63. Rd3+ {[%clk 0:00:04.6]}
63... Ke4 {[%clk 0:00:08.3]} 64. Rh3 {[%clk 0:00:04.6]} 64... Qa1+ {[%clk
0:00:08.5]} 65. Kc2 {[%clk 0:00:05]} 65... a5 {[%clk 0:00:08.9]} 66. Rh4+ {[%clk
0:00:04.7]} 66... Kd5 {[%clk 0:00:09]} 67. Rh5+ {[%clk 0:00:05.3]} 67... Kc6
{[%clk 0:00:09.6]} 68. Rh6+ {[%clk 0:00:05.9]} 68... Kc5 {[%clk 0:00:10.3]} 69.
Rh5+ {[%clk 0:00:06.4]} 69... Kd6 {[%clk 0:00:10.7]} 70. Rh6+ {[%clk 0:00:07]}
70... Kc7 {[%clk 0:00:11.4]} 71. Rh7+ {[%clk 0:00:07.5]} 71... Kb8 {[%clk
0:00:12]} 72. Rh3 {[%clk 0:00:06.9]} 72... Qa2+ {[%clk 0:00:11.6]} 73. Kc1
{[%clk 0:00:06.8]} 73... Kb7 {[%clk 0:00:12.1]} 74. Rh7+ {[%clk 0:00:06.5]}
74... Kc6 {[%clk 0:00:12.3]} 75. Rh6+ {[%clk 0:00:07.1]} 75... Kd5 {[%clk
0:00:13]} 76. Rh5+ {[%clk 0:00:07.4]} 76... Ke4 {[%clk 0:00:13.7]} 77. Rh4+
{[%clk 0:00:08]} 77... Kf3 {[%clk 0:00:14.2]} 78. Rh3+ {[%clk 0:00:08.6]} 78...
Kg4 {[%clk 0:00:14.8]} 79. Rd3 {[%clk 0:00:07.6]} 79... Qa1+ {[%clk 0:00:14.9]}
80. Kc2 {[%clk 0:00:07.8]} 80... Qa2+ {[%clk 0:00:14.5]} 81. Kc1 {[%clk
0:00:08.1]} 81... a4 {[%clk 0:00:15.2]} 82. Rd4+ {[%clk 0:00:07]} 82... Kf3
{[%clk 0:00:14.1]} 83. Rxb4 {[%clk 0:00:07.8]} 83... axb3 {[%clk 0:00:13.9]} 84.
Rb8 {[%clk 0:00:07.4]} 84... Qc2# {[%clk 0:00:13.9]} 0-1

[Event "Late-Titled-Tuesday-Blitz-December-26-2023"]
[Site "Chess.com"]
[Date "2023.12.26"]
[Round "6"]
[White "hsd2016"]
[Black "chenxiaoyuer"]
[Result "1-0"]
[WhiteElo "2296"]
[BlackElo "2697"]
[TimeControl "180+1"]
[EndTime "15:08:32 PST"]
[Termination "hsd2016 won by checkmate"]

1. e4 {[%clk 0:02:49.1]} 1... c5 {[%clk 0:02:59.6]} 2. Nf3 {[%clk 0:02:48.1]}
2... d6 {[%clk 0:03:00.1]} 3. d4 {[%clk 0:02:46.2]} 3... cxd4 {[%clk 0:03:01]}
4. Nxd4 {[%clk 0:02:47.1]} 4... Nf6 {[%clk 0:03:00.9]} 5. Nc3 {[%clk 0:02:46.7]}
5... Nc6 {[%clk 0:03:01.5]} 6. Bb5 {[%clk 0:02:45.2]} 6... Bd7 {[%clk
0:03:00.7]} 7. Bg5 {[%clk 0:02:45.5]} 7... e6 {[%clk 0:02:56]} 8. Qd2 {[%clk
0:02:43.4]} 8... Nxd4 {[%clk 0:02:46.4]} 9. Bxd7+ {[%clk 0:02:39.7]} 9... Qxd7
{[%clk 0:02:46.1]} 10. Qxd4 {[%clk 0:02:39.7]} 10... Be7 {[%clk 0:02:46.5]} 11.
O-O {[%clk 0:02:25.8]} 11... Qc6 {[%clk 0:02:34.5]} 12. Rad1 {[%clk 0:02:15.9]}
12... a6 {[%clk 0:02:13.2]} 13. Rfe1 {[%clk 0:02:04.4]} 13... O-O {[%clk
0:02:10.7]} 14. Bxf6 {[%clk 0:02:03.9]} 14... Bxf6 {[%clk 0:02:11.6]} 15. Qxd6
{[%clk 0:02:03.4]} 15... Rac8 {[%clk 0:01:47.8]} 16. Qxc6 {[%clk 0:02:02.7]}
16... Rxc6 {[%clk 0:01:48.7]} 17. e5 {[%clk 0:02:03]} 17... Bd8 {[%clk
0:01:44.4]} 18. Re2 {[%clk 0:01:24.9]} 18... Bc7 {[%clk 0:01:40.3]} 19. Rd7
{[%clk 0:01:22.7]} 19... b5 {[%clk 0:01:38.2]} 20. a3 {[%clk 0:01:20.2]} 20...
Rc8 {[%clk 0:01:35.9]} 21. f4 {[%clk 0:01:11.7]} 21... Kf8 {[%clk 0:01:33.1]}
22. Kf1 {[%clk 0:00:54]} 22... Ke8 {[%clk 0:01:31.2]} 23. Rd3 {[%clk 0:00:54.6]}
23... Ke7 {[%clk 0:01:19]} 24. Ne4 {[%clk 0:00:41.8]} 24... Rc4 {[%clk
0:01:12.7]} 25. c3 {[%clk 0:00:38.3]} 25... h6 {[%clk 0:01:02.1]} 26. g3 {[%clk
0:00:38.4]} 26... Rg8 {[%clk 0:00:58.6]} 27. Red2 {[%clk 0:00:31.8]} 27... Rd8
{[%clk 0:00:55.7]} 28. Rxd8 {[%clk 0:00:30.4]} 28... Bxd8 {[%clk 0:00:56.6]} 29.
Nd6 {[%clk 0:00:30.8]} 29... Rc6 {[%clk 0:00:52.3]} 30. Nxf7 {[%clk 0:00:25.9]}
30... Bb6 {[%clk 0:00:48.8]} 31. Nd6 {[%clk 0:00:25]} 31... Bc7 {[%clk
0:00:45.4]} 32. Ke2 {[%clk 0:00:21.6]} 32... g5 {[%clk 0:00:42.3]} 33. Ne4
{[%clk 0:00:19.8]} 33... gxf4 {[%clk 0:00:40]} 34. gxf4 {[%clk 0:00:20.7]} 34...
Bb6 {[%clk 0:00:39.3]} 35. Nf6 {[%clk 0:00:19.3]} 35... Rc4 {[%clk 0:00:38.1]}
36. Rd7+ {[%clk 0:00:18.3]} 36... Kf8 {[%clk 0:00:38.7]} 37. Kf3 {[%clk
0:00:18.3]} 37... a5 {[%clk 0:00:34.8]} 38. Rb7 {[%clk 0:00:18.1]} 38... Bc7
{[%clk 0:00:24.6]} 39. Rxb5 {[%clk 0:00:17.7]} 39... a4 {[%clk 0:00:24.6]} 40.
Rb4 {[%clk 0:00:14.6]} 40... Rc5 {[%clk 0:00:25]} 41. Rxa4 {[%clk 0:00:13.7]}
41... Rb5 {[%clk 0:00:24.8]} 42. Rb4 {[%clk 0:00:13.7]} 42... Ra5 {[%clk
0:00:24.9]} 43. Ke4 {[%clk 0:00:13]} 43... Bd8 {[%clk 0:00:25.1]} 44. Rb8 {[%clk
0:00:11.8]} 44... Ke7 {[%clk 0:00:24.6]} 45. Rb7+ {[%clk 0:00:10.8]} 45... Kf8
{[%clk 0:00:20.3]} 46. c4 {[%clk 0:00:09.7]} 46... h5 {[%clk 0:00:19.3]} 47.
Nxh5 {[%clk 0:00:09.2]} 47... Rc5 {[%clk 0:00:19.6]} 48. Kd3 {[%clk 0:00:07.7]}
48... Ra5 {[%clk 0:00:18.7]} 49. Nf6 {[%clk 0:00:06.6]} 49... Ra4 {[%clk
0:00:14]} 50. Ne4 {[%clk 0:00:06.6]} 50... Be7 {[%clk 0:00:13.5]} 51. Nd6 {[%clk
0:00:06.3]} 51... Ra6 {[%clk 0:00:13.2]} 52. c5 {[%clk 0:00:04.7]} 52... Rc6
{[%clk 0:00:11.2]} 53. b4 {[%clk 0:00:04.6]} 53... Bd8 {[%clk 0:00:12.1]} 54.
Rb8 {[%clk 0:00:03.8]} 54... Ke7 {[%clk 0:00:11.8]} 55. Rb7+ {[%clk 0:00:04.4]}
55... Kf8 {[%clk 0:00:11.9]} 56. Kc4 {[%clk 0:00:05]} 56... Ra6 {[%clk 0:00:12]}
57. b5 {[%clk 0:00:05.3]} 57... Ra4+ {[%clk 0:00:11.4]} 58. Kb3 {[%clk
0:00:04.6]} 58... Rxf4 {[%clk 0:00:11.5]} 59. c6 {[%clk 0:00:05.2]} 59... Rf3+
{[%clk 0:00:09.9]} 60. Ka4 {[%clk 0:00:04.9]} 60... Rf4+ {[%clk 0:00:09.7]} 61.
Kb3 {[%clk 0:00:03.9]} 61... Rf3+ {[%clk 0:00:10.2]} 62. Kb4 {[%clk 0:00:03.9]}
62... Rf4+ {[%clk 0:00:10.2]} 63. Nc4 {[%clk 0:00:04.3]} 63... Be7+ {[%clk
0:00:09.8]} 64. Kb3 {[%clk 0:00:03.5]} 64... Rf3+ {[%clk 0:00:10.1]} 65. Ka4
{[%clk 0:00:03.9]} 65... Rc3 {[%clk 0:00:09.9]} 66. Nd6 {[%clk 0:00:01.7]} 66...
Bd8 {[%clk 0:00:07.9]} 67. Rd7 {[%clk 0:00:01.7]} 67... Bb6 {[%clk 0:00:07.4]}
68. Kb4 {[%clk 0:00:01.6]} 68... Rc2 {[%clk 0:00:06.5]} 69. Rb7 {[%clk
0:00:02.5]} 69... Bc5+ {[%clk 0:00:06.6]} 70. Kb3 {[%clk 0:00:03.4]} 70... Rc1
{[%clk 0:00:07]} 71. Rb8+ {[%clk 0:00:03.8]} 71... Kg7 {[%clk 0:00:06.3]} 72. c7
{[%clk 0:00:04.4]} 72... Bb6 {[%clk 0:00:06.3]} 73. c8=Q {[%clk 0:00:04.6]}
73... Rb1+ {[%clk 0:00:06.3]} 74. Ka2 {[%clk 0:00:04.6]} 74... Rb2+ {[%clk
0:00:06]} 75. Kxb2 {[%clk 0:00:04.5]} 75... Bd4+ {[%clk 0:00:06.9]} 76. Kb3
{[%clk 0:00:04.6]} 76... Bxe5 {[%clk 0:00:07.1]} 77. Qxe6 {[%clk 0:00:05.3]}
77... Bxd6 {[%clk 0:00:07.2]} 78. Rg8+ {[%clk 0:00:05.7]} 78... Kh7 {[%clk
0:00:08.1]} 79. Qg6# {[%clk 0:00:06.4]} 1-0

[Event "Late-Titled-Tuesday-Blitz-December-26-2023"]
[Site "Chess.com"]
[Date "2023.12.26"]
[Round "6"]
[White "Rakitic2010"]
[Black "youngdinousaur"]
[Result "1/2-1/2"]
[WhiteElo "2514"]
[BlackElo "2310"]
[TimeControl "180+1"]
[EndTime "15:08:33 PST"]
[Termination "Game drawn by repetition"]

1. e4 {[%clk 0:03:00.9]} 1... c5 {[%clk 0:03:00.5]} 2. Nf3 {[%clk 0:02:57.1]}
2... e6 {[%clk 0:03:00.9]} 3. d4 {[%clk 0:02:55.4]} 3... cxd4 {[%clk 0:03:01.8]}
4. Nxd4 {[%clk 0:02:56.3]} 4... Nf6 {[%clk 0:03:02.4]} 5. Nc3 {[%clk 0:02:54.3]}
5... Nc6 {[%clk 0:03:02.7]} 6. Ndb5 {[%clk 0:02:54.8]} 6... d6 {[%clk
0:03:02.7]} 7. Bf4 {[%clk 0:02:55.4]} 7... e5 {[%clk 0:03:03.3]} 8. Bg5 {[%clk
0:02:56.1]} 8... a6 {[%clk 0:03:03.8]} 9. Na3 {[%clk 0:02:56.7]} 9... b5 {[%clk
0:03:04.3]} 10. Nd5 {[%clk 0:02:57.3]} 10... Be7 {[%clk 0:03:04.6]} 11. Bxf6
{[%clk 0:02:57.9]} 11... Bxf6 {[%clk 0:03:05.5]} 12. c4 {[%clk 0:02:58.5]} 12...
b4 {[%clk 0:03:05.4]} 13. Nc2 {[%clk 0:02:59]} 13... a5 {[%clk 0:03:05.7]} 14.
g3 {[%clk 0:02:59.5]} 14... g6 {[%clk 0:03:03.2]} 15. Bg2 {[%clk 0:02:59.2]}
15... O-O {[%clk 0:03:02.1]} 16. O-O {[%clk 0:02:59.3]} 16... Bg5 {[%clk
0:02:59.3]} 17. Qd3 {[%clk 0:02:58.7]} 17... Bh6 {[%clk 0:02:49.1]} 18. Rad1
{[%clk 0:02:57.3]} 18... Bg7 {[%clk 0:02:45]} 19. b3 {[%clk 0:02:54]} 19... Ra7
{[%clk 0:02:41.1]} 20. f4 {[%clk 0:02:52.8]} 20... Nd4 {[%clk 0:02:39.7]} 21.
Nxd4 {[%clk 0:02:50.5]} 21... exd4 {[%clk 0:02:40.6]} 22. f5 {[%clk 0:02:46.9]}
22... Be5 {[%clk 0:02:40.1]} 23. Qf3 {[%clk 0:02:39.9]} 23... Bb7 {[%clk
0:02:33.9]} 24. Qg4 {[%clk 0:02:34.5]} 24... Bxd5 {[%clk 0:02:32.9]} 25. exd5
{[%clk 0:02:35.4]} 25... Re7 {[%clk 0:02:10.4]} 26. Be4 {[%clk 0:02:31.5]} 26...
Qc8 {[%clk 0:02:00]} 27. Rde1 {[%clk 0:02:25.7]} 27... Qd7 {[%clk 0:01:43.7]}
28. h4 {[%clk 0:02:25]} 28... Kh8 {[%clk 0:01:16]} 29. Kg2 {[%clk 0:02:16.4]}
29... Rg8 {[%clk 0:01:04]} 30. Rf3 {[%clk 0:02:13.9]} 30... gxf5 {[%clk
0:00:45.5]} 31. Qxf5 {[%clk 0:02:12.3]} 31... Qxf5 {[%clk 0:00:44.8]} 32. Bxf5
{[%clk 0:02:12.4]} 32... f6 {[%clk 0:00:43.6]} 33. g4 {[%clk 0:02:08]} 33... h5
{[%clk 0:00:41.3]} 34. Kh3 {[%clk 0:02:05.4]} 34... hxg4+ {[%clk 0:00:39.5]} 35.
Bxg4 {[%clk 0:02:06.3]} 35... Reg7 {[%clk 0:00:39]} 36. Rg1 {[%clk 0:01:59.7]}
36... Rg6 {[%clk 0:00:37.3]} 37. Rf5 {[%clk 0:01:54.8]} 37... Kg7 {[%clk
0:00:22.4]} 38. h5 {[%clk 0:01:48.9]} 38... Rg5 {[%clk 0:00:22.6]} 39. Rxg5+
{[%clk 0:01:48.1]} 39... fxg5 {[%clk 0:00:23.5]} 40. Be6 {[%clk 0:01:49]} 40...
Rf8 {[%clk 0:00:22.1]} 41. Rxg5+ {[%clk 0:01:46.4]} 41... Kh6 {[%clk 0:00:22.2]}
42. Rg1 {[%clk 0:00:53.8]} 42... Kxh5 {[%clk 0:00:20.8]} 43. Bg4+ {[%clk
0:00:51.5]} 43... Kh6 {[%clk 0:00:20.6]} 44. Rg2 {[%clk 0:00:47.4]} 44... Rf1
{[%clk 0:00:20.2]} 45. Be2 {[%clk 0:00:45.6]} 45... Rh1+ {[%clk 0:00:19.1]} 46.
Kg4 {[%clk 0:00:45.7]} 46... Ra1 {[%clk 0:00:19.6]} 47. Bd3 {[%clk 0:00:43.4]}
47... Kg7 {[%clk 0:00:15.3]} 48. Kf5+ {[%clk 0:00:40]} 48... Kf7 {[%clk
0:00:15.8]} 49. Be2 {[%clk 0:00:39.4]} 49... Ke7 {[%clk 0:00:12.3]} 50. c5
{[%clk 0:00:33.9]} 50... Rxa2 {[%clk 0:00:10.2]} 51. c6 {[%clk 0:00:26.7]} 51...
d3 {[%clk 0:00:08]} 52. c7 {[%clk 0:00:26]} 52... Kd7 {[%clk 0:00:06.4]} 53. Rg8
{[%clk 0:00:18.8]} 53... Kxc7 {[%clk 0:00:02.9]} 54. Bxd3 {[%clk 0:00:19.3]}
54... Rf2+ {[%clk 0:00:03.4]} 55. Ke6 {[%clk 0:00:18.6]} 55... Rb2 {[%clk
0:00:04.3]} 56. Bc4 {[%clk 0:00:16.5]} 56... Kb6 {[%clk 0:00:05.2]} 57. Rb8+
{[%clk 0:00:15.8]} 57... Kc5 {[%clk 0:00:06.1]} 58. Rb5+ {[%clk 0:00:13.5]}
58... Kd4 {[%clk 0:00:05.8]} 59. Rxa5 {[%clk 0:00:14.4]} 59... Kc3 {[%clk
0:00:06.5]} 60. Ra6 {[%clk 0:00:12.6]} 60... Rxb3 {[%clk 0:00:06.9]} 61. Rc6
{[%clk 0:00:05.3]} 61... Kb2 {[%clk 0:00:05.5]} 62. Bxb3 {[%clk 0:00:04.4]}
62... Kxb3 {[%clk 0:00:06.4]} 63. Rxd6 {[%clk 0:00:04.1]} 63... Bxd6 {[%clk
0:00:07.3]} 64. Kxd6 {[%clk 0:00:05]} 64... Ka2 {[%clk 0:00:07]} 65. Ke7 {[%clk
0:00:03]} 65... b3 {[%clk 0:00:07.9]} 66. d6 {[%clk 0:00:03.9]} 66... b2 {[%clk
0:00:08.8]} 67. d7 {[%clk 0:00:04.6]} 67... b1=Q {[%clk 0:00:09.7]} 68. d8=Q
{[%clk 0:00:05.5]} 68... Qe1+ {[%clk 0:00:10.2]} 69. Kf7 {[%clk 0:00:04.6]}
69... Qf2+ {[%clk 0:00:10.4]} 70. Kg6 {[%clk 0:00:04.7]} 70... Qg3+ {[%clk
0:00:10.9]} 71. Kf5 {[%clk 0:00:04.6]} 71... Qf3+ {[%clk 0:00:11.3]} 72. Ke5
{[%clk 0:00:04.6]} 72... Qe3+ {[%clk 0:00:12]} 73. Kf5 {[%clk 0:00:05.1]} 73...
Qf3+ {[%clk 0:00:12.3]} 74. Kg6 {[%clk 0:00:04.5]} 74... Qg3+ {[%clk 0:00:12.7]}
75. Kh5 {[%clk 0:00:04.2]} 75... Qh3+ {[%clk 0:00:13.2]} 76. Kg5 {[%clk
0:00:04.6]} 76... Qg3+ {[%clk 0:00:14]} 77. Kf5 {[%clk 0:00:05.1]} 77... Qf3+
{[%clk 0:00:14.7]} 1/2-1/2

[Event "Late-Titled-Tuesday-Blitz-December-26-2023"]
[Site "Chess.com"]
[Date "2023.12.26"]
[Round "6"]
[White "NoHeThTo"]
[Black "GMBenjaminBok"]
[Result "1/2-1/2"]
[WhiteElo "2702"]
[BlackElo "2963"]
[TimeControl "180+1"]
[EndTime "15:08:34 PST"]
[Termination "Game drawn by repetition"]

1. d4 {[%clk 0:03:00.9]} 1... Nf6 {[%clk 0:02:59.2]} 2. Nc3 {[%clk 0:02:59.9]}
2... d5 {[%clk 0:02:59]} 3. Bf4 {[%clk 0:02:59.4]} 3... c5 {[%clk 0:02:59.6]} 4.
e4 {[%clk 0:02:58.1]} 4... cxd4 {[%clk 0:02:59.8]} 5. Qxd4 {[%clk 0:02:57.5]}
5... Nc6 {[%clk 0:03:00.2]} 6. Bb5 {[%clk 0:02:58]} 6... Bd7 {[%clk 0:03:00.2]}
7. Bxc6 {[%clk 0:02:57.7]} 7... Bxc6 {[%clk 0:03:01.1]} 8. e5 {[%clk 0:02:57.6]}
8... Nd7 {[%clk 0:03:01.6]} 9. e6 {[%clk 0:02:57.7]} 9... fxe6 {[%clk
0:03:02.5]} 10. Nf3 {[%clk 0:02:57.1]} 10... Qb6 {[%clk 0:03:03.1]} 11. Qd2
{[%clk 0:02:56.8]} 11... d4 {[%clk 0:03:03.7]} 12. Nxd4 {[%clk 0:02:46.9]} 12...
Bxg2 {[%clk 0:02:58.7]} 13. Ndb5 {[%clk 0:02:38.6]} 13... e5 {[%clk 0:02:54.6]}
14. Be3 {[%clk 0:02:38.4]} 14... Qc6 {[%clk 0:02:52.3]} 15. Rg1 {[%clk
0:02:38.1]} 15... a6 {[%clk 0:02:28.7]} 16. Nc7+ {[%clk 0:02:20.4]} 16... Qxc7
{[%clk 0:02:28]} 17. Rxg2 {[%clk 0:02:20.2]} 17... Qc6 {[%clk 0:02:14.7]} 18.
Rg1 {[%clk 0:02:14.5]} 18... O-O-O {[%clk 0:01:56.2]} 19. O-O-O {[%clk
0:02:12.7]} 19... e6 {[%clk 0:01:51.1]} 20. Qe2 {[%clk 0:02:11.1]} 20... Bb4
{[%clk 0:01:46.9]} 21. Rg4 {[%clk 0:01:56.8]} 21... Bc5 {[%clk 0:01:27.6]} 22.
Rxg7 {[%clk 0:01:52.1]} 22... Nf6 {[%clk 0:01:15.5]} 23. Bxc5 {[%clk 0:01:38.9]}
23... Qxc5 {[%clk 0:01:16.4]} 24. Rgg1 {[%clk 0:01:33.7]} 24... Kb8 {[%clk
0:01:00.8]} 25. Rde1 {[%clk 0:01:28.7]} 25... e4 {[%clk 0:00:54.1]} 26. Nxe4
{[%clk 0:01:09.7]} 26... Nxe4 {[%clk 0:00:55]} 27. Qxe4 {[%clk 0:01:10]} 27...
Qxf2 {[%clk 0:00:54.4]} 28. Qxe6 {[%clk 0:01:07.6]} 28... Qxh2 {[%clk
0:00:36.5]} 29. Qe5+ {[%clk 0:00:59.7]} 29... Qxe5 {[%clk 0:00:36.3]} 30. Rxe5
{[%clk 0:01:00.4]} 30... Rhf8 {[%clk 0:00:31.2]} 31. Re2 {[%clk 0:00:56.8]}
31... h5 {[%clk 0:00:29.2]} 32. Rh1 {[%clk 0:00:56.8]} 32... Rf5 {[%clk
0:00:29.1]} 33. Reh2 {[%clk 0:00:56.2]} 33... Rh8 {[%clk 0:00:26.3]} 34. Rh4
{[%clk 0:00:54.6]} 34... Kc7 {[%clk 0:00:23.4]} 35. b3 {[%clk 0:00:54.1]} 35...
Rh6 {[%clk 0:00:23]} 36. Kb2 {[%clk 0:00:54.2]} 36... Kd7 {[%clk 0:00:23.3]} 37.
a4 {[%clk 0:00:53.3]} 37... Ke7 {[%clk 0:00:23.3]} 38. Rd1 {[%clk 0:00:46]}
38... Rd6 {[%clk 0:00:19]} 39. Rdh1 {[%clk 0:00:44.7]} 39... Rdd5 {[%clk
0:00:19.2]} 40. c4 {[%clk 0:00:44.9]} 40... Rde5 {[%clk 0:00:18.2]} 41. R1h3
{[%clk 0:00:42.4]} 41... Kd6 {[%clk 0:00:17.8]} 42. Kc3 {[%clk 0:00:41.9]} 42...
a5 {[%clk 0:00:17.3]} 43. Kd4 {[%clk 0:00:41.6]} 43... b6 {[%clk 0:00:17.6]} 44.
Rg3 {[%clk 0:00:41.4]} 44... Re1 {[%clk 0:00:13.2]} 45. Rg6+ {[%clk 0:00:41]}
45... Re6 {[%clk 0:00:12.1]} 46. Rg8 {[%clk 0:00:41]} 46... Ref6 {[%clk
0:00:11.7]} 47. Ke4 {[%clk 0:00:37.3]} 47... Re5+ {[%clk 0:00:10.2]} 48. Kd4
{[%clk 0:00:37]} 48... Ref5 {[%clk 0:00:08.4]} 49. Ke4 {[%clk 0:00:36.2]} 49...
Rf3 {[%clk 0:00:08.5]} 50. Rd8+ {[%clk 0:00:29.6]} 50... Kc7 {[%clk 0:00:08.7]}
51. Rh8 {[%clk 0:00:25.4]} 51... Rxb3 {[%clk 0:00:08]} 52. R4xh5 {[%clk
0:00:24.8]} 52... Rd6 {[%clk 0:00:05.2]} 53. c5 {[%clk 0:00:21.1]} 53... Rb4+
{[%clk 0:00:05]} 54. Ke3 {[%clk 0:00:21.5]} 54... Re6+ {[%clk 0:00:05]} 55. Kd3
{[%clk 0:00:20.4]} 55... Rxa4 {[%clk 0:00:05.5]} 56. cxb6+ {[%clk 0:00:18.5]}
56... Kxb6 {[%clk 0:00:05.2]} 57. R8h6 {[%clk 0:00:18]} 57... Rxh6 {[%clk
0:00:05.3]} 58. Rxh6+ {[%clk 0:00:18.4]} 58... Kb5 {[%clk 0:00:06]} 59. Kc3
{[%clk 0:00:18.9]} 59... Rc4+ {[%clk 0:00:05.7]} 60. Kb3 {[%clk 0:00:18.5]}
60... Rc5 {[%clk 0:00:05.9]} 61. Rh8 {[%clk 0:00:18.2]} 61... a4+ {[%clk
0:00:06.4]} 62. Ka3 {[%clk 0:00:18.7]} 62... Rd5 {[%clk 0:00:05.6]} 63. Rb8+
{[%clk 0:00:18]} 63... Kc4 {[%clk 0:00:05.6]} 64. Rc8+ {[%clk 0:00:18.2]} 64...
Kd4 {[%clk 0:00:05.2]} 65. Kxa4 {[%clk 0:00:18.1]} 65... Rd7 {[%clk 0:00:05.3]}
66. Rb8 {[%clk 0:00:18]} 66... Kc4 {[%clk 0:00:04.6]} 67. Rc8+ {[%clk
0:00:18.3]} 67... Kd4 {[%clk 0:00:04.8]} 68. Rc1 {[%clk 0:00:18.3]} 68... Rb7
{[%clk 0:00:03.9]} 69. Rd1+ {[%clk 0:00:15.2]} 69... Kc3 {[%clk 0:00:04.3]} 70.
Rc1+ {[%clk 0:00:15.2]} 70... Kd3 {[%clk 0:00:05]} 71. Rd1+ {[%clk 0:00:15]}
71... Kc2 {[%clk 0:00:05.1]} 72. Rh1 {[%clk 0:00:15.1]} 72... Kc3 {[%clk
0:00:05.2]} 73. Rh3+ {[%clk 0:00:15.4]} 73... Kc4 {[%clk 0:00:05.6]} 74. Rh4+
{[%clk 0:00:15.8]} 74... Kd3 {[%clk 0:00:06.2]} 75. Rh3+ {[%clk 0:00:16.2]}
75... Kd4 {[%clk 0:00:06.6]} 76. Rh4+ {[%clk 0:00:16.3]} 76... Ke3 {[%clk
0:00:07.1]} 77. Rh3+ {[%clk 0:00:16.4]} 77... Kf4 {[%clk 0:00:07.8]} 78. Rb3
{[%clk 0:00:16.7]} 78... Rd7 {[%clk 0:00:07.6]} 79. Rb4+ {[%clk 0:00:16.9]}
79... Ke5 {[%clk 0:00:08.2]} 80. Rh4 {[%clk 0:00:17]} 80... Rb7 {[%clk
0:00:07.4]} 81. Rh5+ {[%clk 0:00:16.5]} 81... Kd4 {[%clk 0:00:07.8]} 82. Rh4+
{[%clk 0:00:16.9]} 82... Kc5 {[%clk 0:00:08.4]} 83. Rh5+ {[%clk 0:00:17.4]}
83... Kc4 {[%clk 0:00:08.8]} 84. Rh4+ {[%clk 0:00:17.8]} 84... Kd3 {[%clk
0:00:09.3]} 85. Rh3+ {[%clk 0:00:18.1]} 85... Ke4 {[%clk 0:00:09.6]} 86. Rh4+
{[%clk 0:00:18.7]} 86... Kd5 {[%clk 0:00:10]} 87. Rh5+ {[%clk 0:00:19.1]} 87...
Kd4 {[%clk 0:00:10.5]} 88. Rh4+ {[%clk 0:00:18.8]} 1/2-1/2